fUSD/lending_fUSD_20250421
["ID","MTS","AMOUNT","RATE_DAILY","PERIOD"]
[358482625,1745202632576,-3564.39303239,0.0002421,2]
[358482626,1745202632585,-13411.61671763,0.00024444,2]
[358482627,1745202632879,-2310.70696985,0.00024444,2]
[358482628,1745202632888,-420.0,0.00024774,2]
[358482629,1745202632898,-587.0,0.00027027,2]
[358482630,1745202632907,-2000.78506579,0.00027325,2]
[358482631,1745202632916,-7136.9,0.00027397,2]
[358482632,1745202632925,-9999.99,0.00027397,2]
[358482633,1745202632935,-9999.99,0.00027397,2]
[358482634,1745202632944,-499.99,0.00027397,2]
[358482635,1745202632953,-999.99,0.00027397,2]
[358482636,1745202632963,-1129.87,0.00027397,2]
[358482637,1745202632973,-150.99,0.00027397,2]
[358482638,1745202632982,-324.12,0.00027397,2]
[358482639,1745202632992,-178.89,0.00027611,2]
[358482640,1745202633002,-823.0,0.00029484,2]
[358482641,1745202633011,-37544.77274664,0.00029639,2]
[358482644,1745202638333,-428.67700717,0.00029639,2]
[358482645,1745202638440,-13448.30904699,0.00029639,2]
[358482646,1745202638495,-8767.53091115,0.00029639,2]
[358482647,1745202638504,-450.75579514,0.0003,2]
[358482648,1745202638513,-160.61989909,0.0003,2]
[358482649,1745202638522,-441.0661,0.00032137,10]
[358482650,1745202638532,-1152.0,0.00032165,3]
[358482651,1745202638541,-2000.78506579,0.0003287,2]
[358482652,1745202638550,-4797.13765512,0.00035,2]
[358482653,1745202638559,-1613.0,0.0003509,3]
[358482654,1745202638571,-2258.0,0.00038281,3]
[358482657,1745202638718,-2000.78506579,0.00038414,2]
[358482658,1745202638728,-306.53445325,0.00041096,10]
[358482659,1745202638737,-272.30858089,0.00041131,2]
[358482660,1745202638746,-157.26,0.00041271,2]
[358482661,1745202638756,-3162.0,0.00041762,5]
[358482662,1745202638765,-522.659,0.00042418,2]
[358482663,1745202638774,-688.695,0.00042418,2]
[358482664,1745202638783,-1242.909,0.00042418,2]
[358482665,1745202638792,-155.658393,0.000429,2]
[358482666,1745202638802,-1368.17245845,0.00043,2]
[358482667,1745202638811,-2000.78506579,0.00043958,15]
[358482668,1745202638820,-182.25613406,0.00044,120]
[358482669,1745202638829,-166.66785936,0.0004439,120]
[358482670,1745202638838,-158.125752,0.000445,2]
[358482671,1745202638847,-1220.63192683,0.00044999,120]
[358482672,1745202638857,-405.0,0.00045,120]
[358482673,1745202638865,-2098.5477036,0.00045,2]
[358482674,1745202638875,-18603.03840513,0.00045,30]
[358482675,1745202638884,-4427.0,0.00045559,5]
[358482676,1745202638893,-173.11238741,0.00046,60]
[358482677,1745202638902,-161.86,0.0004611,2]
[358482678,1745202638911,-5595.94024127,0.00046512,2]
[358482679,1745202638920,-513.92847021,0.00046915,120]
[358482680,1745202638929,-150.0,0.00047379,120]
[358482681,1745202638938,-200.0,0.00047691,2]
[358482682,1745202638947,-150.0,0.00047746,120]
[358482683,1745202638955,-9500.0,0.000479,17]
[358482684,1745202638964,-500.0,0.00048046,120]
[358482685,1745202638973,-500.0,0.00048046,120]
[358482686,1745202638982,-500.0,0.00048046,120]
[358482687,1745202638991,-500.0,0.00048046,120]
[358482688,1745202638999,-500.0,0.00048046,120]
[358482689,1745202639008,-500.0,0.00048046,120]
[358482690,1745202639017,-500.0,0.00048046,120]
[358482691,1745202639026,-255.20801575,0.00048046,120]
[358482692,1745202639035,-500.0,0.00048046,120]
[358482693,1745202639044,-140569.66431832,0.00048047,2]
[358482694,1745202639053,-2183.9854,0.00048185,2]
[358482695,1745202639062,-14937.3638,0.00048185,2]
[358482696,1745202639071,-186.72856282,0.00048185,31]
[358482697,1745202639080,-154.22529038,0.00048186,30]
[358482698,1745202639089,-198.72,0.000482,45]
[358482699,1745202639098,-198.72,0.000482,45]
[358482700,1745202639107,-198.72,0.000482,45]
[358482701,1745202639116,-198.72,0.000482,45]
[358482702,1745202639126,-198.72,0.000482,45]
[358482703,1745202639135,-198.72,0.000482,45]
[358482704,1745202639144,-198.72,0.000482,45]
[358482705,1745202639153,-198.72,0.000482,45]
[358482706,1745202639162,-198.72,0.000482,45]
[358482707,1745202639171,-198.72,0.000482,45]
[358482708,1745202639180,-198.72,0.000482,45]
[358482709,1745202639189,-198.72,0.000482,45]
[358482710,1745202639198,-17036.615096,0.00048211,3]
[358482711,1745202639207,-257.42,0.00048221,4]
[358482712,1745202639216,-156.02,0.00048275,2]
[358482713,1745202639226,-508054.03788116,0.00048285,60]
[358482714,1745202639235,-15591.63363309,0.00048285,120]
[358482715,1745202639246,-2030.14350278,0.00048285,2]
[358482716,1745202639255,-515.3893978,0.00048285,7]
[358482717,1745202639264,-870.39588657,0.00048285,7]
[358482718,1745202639273,-1035.6560666,0.00048285,7]
[358482719,1745202639282,-1282.41808615,0.00048285,4]
[358482720,1745202639292,-155.9822881,0.00048285,120]
[358482721,1745202639301,-464.43762623,0.00048285,7]
[358482722,1745202639310,-198.29213581,0.00048285,30]
[358482723,1745202639319,-19185.91173119,0.00048285,2]
[358482724,1745202639329,-544.74813969,0.00048285,7]
[358482725,1745202639338,-340.98392406,0.00048285,7]
[358482726,1745202639347,-919.34116435,0.00048285,3]
[358482727,1745202639355,-2052.36118263,0.00048285,3]
[358482728,1745202639365,-22989.09506569,0.00048285,30]
[358482729,1745202639374,-2206.38923674,0.00048285,120]
[358482730,1745202639383,-5644.04500891,0.00048285,60]
[358482731,1745202639392,-6769.30542746,0.00048285,4]
[358482732,1745202639400,-5195.16721556,0.00048285,4]
[358482733,1745202639409,-155.95826121,0.00048285,30]
[358482734,1745202639418,-1932.53777144,0.00048285,2]
[358482735,1745202639427,-6239.45967096,0.00048287,30]
[358482736,1745202639437,-1099.98,0.00048288,83]
[358482737,1745202639446,-200.0,0.00048288,30]
[358482738,1745202639455,-308.71,0.000483,14]
[358482739,1745202639464,-1666.49883423,0.000488,120]
[358482740,1745202639474,-500.0,0.0004885,30]
[358482741,1745202639484,-1100.0,0.00048882,30]
[358482742,1745202639493,-700.0,0.00048971,30]
[358482743,1745202639502,-700.0,0.00048993,30]
[358482744,1745202639511,-1100.0,0.00049035,30]
[358482745,1745202639520,-1100.0,0.00049055,30]
[358482746,1745202639530,-1100.0,0.00049245,30]
[358482747,1745202639539,-700.0,0.00049404,30]
[358482748,1745202639548,-3000.0,0.000495,2]
[358482749,1745202639557,-2000.78506579,0.00049503,15]
[358482750,1745202639565,-1100.0,0.00049631,30]
[358482751,1745202639574,-6198.0,0.00049702,5]
[358482752,1745202639584,-152.21197787,0.000498,120]
[358482753,1745202639593,-1100.0,0.00049828,30]
[358482754,1745202639606,-529.22926207,0.00049941,30]
[358482755,1745202639615,-792.09711407,0.00049961,30]
[358482756,1745202639624,-42858.96124326,0.0004999,2]
[358482757,1745202639633,-155.49718137,0.0005,120]
[358482758,1745202639643,-1100.0,0.0005105,60]
[358482759,1745202639652,-961.45829093,0.00051105,60]
[358482760,1745202639661,-17036.615096,0.00051141,4]
[358482761,1745202639670,-151.0,0.00051141,120]
[358482762,1745202639680,-151.0,0.00051141,120]
[358482763,1745202639689,-700.0,0.00051151,60]
[358482764,1745202639699,-151.0,0.000513,120]
[358482765,1745202639708,-700.0,0.00051411,60]
[358482766,1745202639717,-700.0,0.00051748,60]
[358482767,1745202639728,-308.71,0.000518,14]
[358482768,1745202639737,-152.0,0.00052,120]
[358482769,1745202639746,-151.0,0.00052,120]
[358482770,1745202639755,-293.20539615,0.00052,120]
[358482771,1745202639765,-499.42933006,0.000521,10]
[358482772,1745202639775,-1100.0,0.00052385,60]
[358482773,1745202639784,-700.0,0.00052467,60]
[358482774,1745202639793,-368.0,0.000525,120]
[358482775,1745202639803,-1100.0,0.00052513,60]
[358482776,1745202639812,-700.0,0.0005254,60]
[358482777,1745202639821,-700.0,0.00052632,60]
[358482778,1745202639830,-1100.0,0.00052826,60]
[358482779,1745202639840,-1680.98856841,0.00053,30]
[358482780,1745202639851,-155.658393,0.00053259,60]
[358482781,1745202639862,-1100.0,0.00053314,60]
[358482782,1745202639872,-500.0,0.00053672,60]
[358482783,1745202639881,-150.0,0.00054135,120]
[358482784,1745202639890,-5640.0,0.00054221,10]
[358482785,1745202639899,-439.65983743,0.00054247,120]
[358482786,1745202639909,-155.658393,0.0005435,2]
[358482787,1745202639918,-308.71,0.000544,60]
[358482788,1745202639927,-700.0,0.00054479,60]
[358482789,1745202639937,-198.72,0.000545,54]
[358482790,1745202639946,-198.72,0.000545,54]
[358482791,1745202639955,-198.72,0.000545,54]
[358482792,1745202639965,-198.72,0.000545,54]
[358482793,1745202639975,-198.72,0.000545,54]
[358482794,1745202639984,-198.72,0.000545,54]
[358482795,1745202639993,-198.72,0.000545,54]
[358482796,1745202640002,-198.72,0.000545,54]
[358482797,1745202640011,-198.72,0.000545,54]
[358482798,1745202640021,-198.72,0.000545,54]
[358482799,1745202640031,-198.72,0.000545,54]
[358482800,1745202640040,-198.72,0.000545,54]
[358482801,1745202640050,-198.72,0.000545,54]
[358482802,1745202640060,-198.72,0.000545,54]
[358482803,1745202640071,-198.72,0.000545,54]
[358482804,1745202640081,-198.72,0.000545,54]
[358482805,1745202640090,-198.72,0.000545,54]
[358482806,1745202640099,-198.72,0.000545,54]
[358482807,1745202640111,-198.72,0.000545,54]
[358482808,1745202640122,-198.72,0.000545,54]
[358482809,1745202640133,-198.72,0.000545,54]
[358482810,1745202640141,-198.72,0.000545,54]
[358482811,1745202640151,-198.72,0.000545,54]
[358482812,1745202640161,-198.72,0.000545,54]
[358482813,1745202640170,-151.0,0.000546,120]
[358482814,1745202640179,-158.125752,0.00054625,54]
[358482815,1745202640188,-158.125752,0.00054638,54]
[358482816,1745202640197,-158.125752,0.0005465,54]
[358482817,1745202640206,-150.496249,0.000547,54]
[358482818,1745202640215,-150.496249,0.000547,54]
[358482819,1745202640224,-159.209059,0.000547,54]
[358482820,1745202640233,-159.209059,0.000547,54]
[358482821,1745202640243,-155.071157,0.000547,54]
[358482822,1745202640252,-155.071157,0.000547,54]
[358482823,1745202640261,-155.658393,0.000547,54]
[358482824,1745202640270,-155.658393,0.000547,54]
[358482825,1745202640279,-155.658393,0.000547,54]
[358482826,1745202640288,-159.209059,0.00054754,3]
[358482827,1745202640297,-155.658393,0.00054754,3]
[358482828,1745202640306,-158.91973357,0.00054795,120]
[358482829,1745202640315,-500.0,0.00054795,120]
[358482830,1745202640324,-170.86945282,0.00054795,120]
[358482831,1745202640333,-500.0,0.00054883,60]
[358482832,1745202640342,-3126.59264757,0.000549,30]
[358482833,1745202640351,-151.0,0.00055,120]
[358482834,1745202640360,-162.73161502,0.00055,5]
[358482835,1745202640369,-418.5111103,0.00055,2]
[358482836,1745202640378,-152.06274689,0.00055,30]
[358482837,1745202640388,-2000.78506579,0.00055047,15]
[358482838,1745202640397,-700.0,0.00055149,120]
[358482839,1745202640406,-157.26,0.00055312,120]
[358482840,1745202640415,-1100.0,0.00055463,120]
[358482841,1745202640424,-700.0,0.00055583,120]
[358482842,1745202640433,-178.93418074,0.00055646,8]
[358482843,1745202640442,-152.0,0.00056,120]
[358482844,1745202640451,-1100.0,0.00056251,120]
[358482845,1745202640461,-151.0,0.00056265,120]
[358482846,1745202640469,-700.0,0.00056503,120]
[358482847,1745202640479,-17036.615096,0.00056747,4]
[358482848,1745202640488,-547.4933637,0.00056747,4]
[358482849,1745202640497,-158.125752,0.0005675,2]
[358482850,1745202640506,-150.496249,0.0005675,2]
[358482851,1745202640515,-159.209059,0.0005675,2]
[358482852,1745202640523,-155.071157,0.0005675,2]
[358482853,1745202640532,-308.71,0.000568,60]
[358482854,1745202640541,-700.0,0.00056899,120]
[358482855,1745202640550,-19100.0,0.000569,20]
[358482856,1745202640559,-430.8398464,0.00057,120]
[358482857,1745202640568,-329.76386651,0.000571,2]
[358482858,1745202640578,-988.79258214,0.00057114,120]
[358482859,1745202640586,-620.3819362,0.00057141,120]
[358482860,1745202640595,-1000.0,0.00057159,20]
[358482861,1745202640607,-1000.0,0.00057296,20]
[358482862,1745202640617,-500.0,0.00057322,120]
[358482863,1745202640626,-199.66817015,0.00057361,120]
[358482864,1745202640635,-17036.615096,0.00057362,4]
[358482865,1745202640644,-500.0,0.00057371,60]
[358482866,1745202640654,-547.4933637,0.00057372,4]
[358482867,1745202640663,-250.0,0.00057372,120]
[358482868,1745202640672,-23900.0,0.00057372,2]
[358482869,1745202640683,-1100.0,0.00057382,120]
[358482870,1745202640692,-152.86,0.00057415,120]
[358482871,1745202640701,-1000.0,0.00057433,20]
[358482872,1745202640711,-151.0,0.0005753,120]
[358482873,1745202640720,-1100.0,0.00057548,120]
[358482874,1745202640729,-1000.0,0.0005757,20]
[358482875,1745202640738,-634.0,0.0005757,20]
[358482876,1745202640747,-1100.0,0.00057737,120]
[358482877,1745202640757,-522.0,0.0005789,2]
[358482878,1745202640767,-151.0,0.000579,120]
[358482879,1745202640776,-692.78,0.00057942,30]
[358482880,1745202640785,-797.18,0.00057942,30]
[358482881,1745202640795,-797.18,0.00057942,30]
[358482882,1745202640804,-612.73,0.00057942,30]
[358482883,1745202640813,-434.25,0.00057946,30]
[358482884,1745202640822,-150.0,0.00057946,30]
[358482885,1745202640831,-150.0,0.00057946,30]
[358482886,1745202640840,-440.79,0.00057946,30]
[358482887,1745202640849,-150.0,0.00057946,30]
[358482888,1745202640859,-150.0,0.00057946,30]
[358482889,1745202640868,-2080.11848847,0.00058,120]
[358482890,1745202640877,-1100.0,0.00058017,120]
[358482891,1745202640887,-700.0,0.00058018,120]
[358482892,1745202640895,-155.658393,0.0005823,60]
[358482893,1745202640905,-150.0,0.00058258,120]
[358482894,1745202640914,-150.0,0.00058643,120]
[358482895,1745202640923,-151.0,0.00058795,120]
[358482896,1745202640932,-1100.0,0.00058862,120]
[358482897,1745202640942,-588.0,0.00059,120]
[358482898,1745202640952,-503.26592607,0.000594,15]
[358482899,1745202640961,-1100.0,0.00059563,120]
[358482900,1745202640971,-151.0,0.00059589,120]
[358482901,1745202640980,-17036.615096,0.00059605,4]
[358482902,1745202640989,-700.0,0.00059779,120]
[358482903,1745202640998,-150.0,0.000598,2]
[358482904,1745202641007,-700.0,0.00059857,120]
[358482905,1745202641017,-7435.88654179,0.0005987,120]
[358482906,1745202641026,-157.87220748,0.000599,120]
[358482907,1745202641036,-157.87220745,0.000599,120]
[358482908,1745202641045,-157.87220745,0.000599,120]
[358482909,1745202641054,-157.87220745,0.000599,120]
[358482910,1745202641063,-700.0,0.00059915,120]
[358482911,1745202641072,-1100.0,0.00059949,120]
[358482912,1745202641082,-151.0,0.00059991,120]
[358482913,1745202641091,-151.0,0.00059991,120]
[358482914,1745202641100,-291.882179,0.00059991,120]
[358482915,1745202641109,-164.686311,0.00059991,120]
[358482916,1745202641118,-151.0,0.00059991,120]
[358482917,1745202641127,-160.493781,0.00059991,120]
[358482918,1745202641136,-160.493781,0.00059991,120]
[358482919,1745202641145,-244.33491417,0.00059991,120]
[358482920,1745202641154,-152.0,0.0006,120]
[358482921,1745202641163,-1009.58,0.0006,120]
[358482922,1745202641172,-787.03733661,0.0006,120]
[358482923,1745202641181,-946.78563424,0.0006,30]
[358482924,1745202641189,-421.05679157,0.0006,120]
[358482925,1745202641199,-1490.1983777,0.0006,120]
[358482926,1745202641208,-192.19748725,0.0006,30]
[358482927,1745202641217,-864.80066179,0.0006,120]
[358482928,1745202641226,-176.38956735,0.0006,30]
[358482929,1745202641235,-300.0,0.0006,2]
[358482930,1745202641244,-151.0,0.0006,120]
[358482931,1745202641253,-204.876667,0.0006,120]
[358482932,1745202641265,-151.0,0.00060059,120]
[358482933,1745202641274,-700.0,0.00060135,120]
[358482934,1745202641284,-3546.8692856,0.00060323,28]
[358482935,1745202641293,-500.0,0.0006049,120]
[358482936,1745202641302,-500.0,0.0006049,120]
[358482937,1745202641312,-500.0,0.0006049,120]
[358482938,1745202641321,-150.0,0.0006049,2]
[358482939,1745202641331,-500.0,0.00060517,120]
[358482940,1745202641340,-500.0,0.00060517,120]
[358482941,1745202641350,-500.0,0.00060517,120]
[358482942,1745202641359,-500.0,0.00060545,120]
[358482943,1745202641368,-500.0,0.00060545,120]
[358482944,1745202641378,-357.75242315,0.00060545,120]
[358482945,1745202641387,-500.0,0.00060572,120]
[358482946,1745202641396,-500.0,0.00060572,120]
[358482947,1745202641405,-2000.78506579,0.00060591,15]
[358482948,1745202641414,-500.0,0.000606,120]
[358482949,1745202641424,-500.0,0.000606,120]
[358482950,1745202641433,-500.0,0.00060627,120]
[358482951,1745202641442,-500.0,0.00060627,120]
[358482952,1745202641585,-500.0,0.00060654,120]
[358482953,1745202641595,-500.0,0.00060654,120]
[358482954,1745202641607,-500.0,0.00060682,120]
[358482955,1745202641616,-500.0,0.00060682,120]
[358482956,1745202641626,-1864.26,0.000607,2]
[358482957,1745202641635,-1117.75,0.000607,2]
[358482958,1745202641645,-223.55,0.000607,2]
[358482959,1745202641654,-496.71,0.000607,2]
[358482960,1745202641663,-500.0,0.00060709,120]
[358482961,1745202641673,-500.0,0.00060709,120]
[358482962,1745202641683,-500.0,0.00060737,120]
[358482963,1745202641692,-500.0,0.00060737,120]
[358482964,1745202641701,-181.52508164,0.00060764,120]
[358482965,1745202641711,-500.0,0.00060764,120]
[358482966,1745202641720,-1100.0,0.00060779,120]
[358482967,1745202641730,-505.75771246,0.00060791,120]
[358482968,1745202641739,-755.63063361,0.00060804,120]
[358482969,1745202641748,-150.496249,0.00060827,3]
[358482970,1745202641757,-159.209059,0.00060827,3]
[358482971,1745202641767,-155.071157,0.00060827,3]
[358482972,1745202641777,-155.658393,0.00060827,3]
[358482973,1745202641786,-17036.615096,0.0006089,4]
[358482974,1745202641795,-547.4933637,0.0006089,5]
[358482975,1745202641804,-198.72,0.000609,63]
[358482976,1745202641814,-198.72,0.000609,63]
[358482977,1745202641823,-198.72,0.000609,63]
[358482978,1745202641832,-198.72,0.000609,63]
[358482979,1745202641842,-198.72,0.000609,63]
[358482980,1745202641851,-198.72,0.000609,63]
[358482981,1745202641860,-198.72,0.000609,63]
[358482982,1745202641869,-198.72,0.000609,63]
[358482983,1745202641878,-198.72,0.000609,63]
[358482984,1745202641888,-198.72,0.000609,63]
[358482985,1745202641898,-198.72,0.000609,63]
[358482986,1745202641907,-198.72,0.000609,63]
[358482987,1745202641916,-198.72,0.000609,63]
[358482988,1745202641925,-198.72,0.000609,63]
[358482989,1745202641933,-198.72,0.000609,63]
[358482990,1745202641943,-198.72,0.000609,63]
[358482991,1745202641953,-198.72,0.000609,63]
[358482992,1745202641964,-198.72,0.000609,63]
[358482993,1745202641973,-198.72,0.000609,63]
[358482994,1745202641983,-198.72,0.000609,63]
[358482995,1745202641993,-198.72,0.000609,63]
[358482996,1745202642004,-198.72,0.000609,63]
[358482997,1745202642014,-198.72,0.000609,63]
[358482998,1745202642023,-198.72,0.000609,63]
[358482999,1745202642032,-2164.0,0.000609,120]
[358483000,1745202642042,-500.0,0.000609,120]
[358483001,1745202642051,-861.0,0.000609,120]
[358483002,1745202642060,-500.0,0.000609,120]
[358483003,1745202642069,-248.48213612,0.000609,80]
[358483004,1745202642077,-500.0,0.000609,120]
[358483005,1745202642086,-500.0,0.000609,120]
[358483006,1745202642095,-150.0,0.000609,120]
[358483007,1745202642105,-268.2,0.00060921,30]
[358483008,1745202642114,-151.0,0.00060927,120]
[358483009,1745202642123,-2164.0,0.00060927,120]
[358483010,1745202642133,-500.0,0.00060927,120]
[358483011,1745202642142,-861.0,0.00060927,120]
[358483012,1745202642152,-500.0,0.00060927,120]
[358483013,1745202642162,-500.0,0.00060927,120]
[358483014,1745202642171,-500.0,0.00060927,120]
[358483015,1745202642181,-228.00086056,0.00060927,120]
[358483016,1745202642190,-2164.0,0.00060955,120]
[358483017,1745202642200,-326.87598658,0.00060955,120]
[358483018,1745202642210,-861.0,0.00060955,120]
[358483019,1745202642219,-500.0,0.00060955,120]
[358483020,1745202642228,-500.0,0.00060955,120]
[358483021,1745202642237,-500.0,0.00060955,120]
[358483022,1745202642247,-2164.0,0.00060982,120]
[358483023,1745202642256,-861.0,0.00060982,120]
[358483024,1745202642265,-500.0,0.00060982,120]
[358483025,1745202642275,-500.0,0.00060982,120]
[358483026,1745202642284,-500.0,0.00060982,120]
[358483027,1745202642293,-2164.0,0.0006101,120]
[358483028,1745202642303,-861.0,0.0006101,120]
[358483029,1745202642312,-500.0,0.0006101,120]
[358483030,1745202642321,-500.0,0.0006101,120]
[358483031,1745202642330,-500.0,0.0006101,120]
[358483032,1745202642339,-2164.0,0.00061037,120]
[358483033,1745202642349,-861.0,0.00061037,120]
[358483034,1745202642358,-500.0,0.00061037,120]
[358483035,1745202642367,-500.0,0.00061037,120]
[358483036,1745202642377,-500.0,0.00061037,120]
[358483037,1745202642386,-1100.0,0.00061038,120]
[358483038,1745202642395,-17036.615096,0.00061045,4]
[358483039,1745202642404,-7872.3225022,0.00061055,120]
[358483040,1745202642413,-2164.0,0.00061064,120]
[358483041,1745202642422,-861.0,0.00061064,120]
[358483042,1745202642431,-500.0,0.00061064,120]
[358483043,1745202642440,-500.0,0.00061064,120]
[358483044,1745202642449,-500.0,0.00061064,120]
[358483045,1745202642459,-547.4933637,0.00061082,5]
[358483046,1745202642468,-2164.0,0.00061092,120]
[358483047,1745202642477,-861.0,0.00061092,120]
[358483048,1745202642486,-500.0,0.00061092,120]
[358483049,1745202642496,-500.0,0.00061092,120]
[358483050,1745202642505,-500.0,0.00061092,120]
[358483051,1745202642515,-2164.0,0.00061119,120]
[358483052,1745202642523,-861.0,0.00061119,120]
[358483053,1745202642533,-303.85266808,0.00061119,120]
[358483054,1745202642541,-569.46056612,0.00061119,120]
[358483055,1745202642550,-500.0,0.00061119,120]
[358483056,1745202642560,-2164.0,0.00061147,120]
[358483057,1745202642569,-861.0,0.00061147,120]
[358483058,1745202642578,-500.0,0.00061147,120]
[358483059,1745202642588,-2164.0,0.00061174,120]
[358483060,1745202642597,-861.0,0.00061174,120]
[358483061,1745202642610,-500.0,0.00061174,120]
[358483062,1745202642620,-151.0,0.000612,120]
[358483063,1745202642630,-2164.0,0.00061201,120]
[358483064,1745202642639,-861.0,0.00061201,120]
[358483065,1745202642649,-500.0,0.00061201,120]
[358483066,1745202642658,-17036.615096,0.00061219,4]
[358483067,1745202642667,-2164.0,0.00061229,120]
[358483068,1745202642676,-861.0,0.00061229,120]
[358483069,1745202642687,-500.0,0.00061229,120]
[358483070,1745202642697,-2164.0,0.00061256,120]
[358483071,1745202642706,-861.0,0.00061256,120]
[358483072,1745202642715,-500.0,0.00061256,120]
[358483073,1745202642724,-2164.0,0.00061284,120]
[358483074,1745202642734,-861.0,0.00061284,120]
[358483075,1745202642743,-356.49893494,0.00061284,120]
[358483076,1745202642752,-2164.0,0.00061311,120]
[358483077,1745202642762,-861.0,0.00061311,120]
[358483078,1745202642771,-700.0,0.00061321,120]
[358483079,1745202642780,-173.61327079,0.00061324,120]
[358483080,1745202642790,-2164.0,0.00061338,120]
[358483081,1745202642799,-861.0,0.00061338,120]
[358483082,1745202642808,-2164.0,0.00061366,120]
[358483083,1745202642818,-861.0,0.00061366,120]
[358483084,1745202642827,-2164.0,0.00061393,120]
[358483085,1745202642837,-861.0,0.00061393,120]
[358483086,1745202642846,-2164.0,0.00061421,120]
[358483087,1745202642855,-861.0,0.00061421,120]
[358483088,1745202642865,-2164.0,0.00061448,120]
[358483089,1745202642875,-861.0,0.00061448,120]
[358483090,1745202642884,-2164.0,0.00061475,120]
[358483091,1745202642894,-861.0,0.00061475,120]
[358483092,1745202642903,-547.4933637,0.00061493,5]
[358483093,1745202642913,-2164.0,0.00061503,120]
[358483094,1745202642922,-861.0,0.00061503,120]
[358483095,1745202642931,-151.0,0.0006152,120]
[358483096,1745202642940,-17036.615096,0.0006152,4]
[358483097,1745202642950,-2180.5139377,0.0006153,120]
[358483098,1745202642959,-882.31029925,0.0006153,120]
[358483099,1745202642969,-150.0,0.00061781,7]
[358483100,1745202642978,-1864.26,0.000618,2]
[358483101,1745202642988,-1117.75,0.000618,2]
[358483102,1745202642998,-223.55,0.000618,2]
[358483103,1745202643007,-496.71,0.000618,2]
[358483104,1745202643017,-1100.0,0.00061949,120]
[358483105,1745202643026,-500.0,0.00061988,4]
[358483106,1745202643035,-682.67813508,0.00062,120]
[358483107,1745202643044,-1000.0,0.00062064,120]
[358483108,1745202643054,-1100.0,0.00062076,120]
[358483109,1745202643063,-327.05,0.00062091,2]
[358483110,1745202643072,-1100.0,0.00062277,120]
[358483111,1745202643081,-166.67,0.00062412,2]
[358483112,1745202643090,-2000.0,0.000625,90]
[358483114,1745202643100,-500.0,0.00063003,60]
[358483116,1745202643109,-85183.0754802,0.00063004,5]
[358483118,1745202643118,-1642.4800911,0.00063004,5]
[358483120,1745202643126,-500.0,0.00063013,60]
[358483122,1745202643136,-300.0,0.00063013,30]
[358483123,1745202643145,-500.0,0.00063013,60]
[358483124,1745202643154,-672.03124399,0.00063013,120]
[358483125,1745202643163,-573.61179673,0.00063013,60]
[358483126,1745202643172,-387.73027184,0.00063014,120]
[358483127,1745202643181,-151.0,0.00063014,120]
[358483128,1745202643190,-151.0,0.00063014,120]
[358483129,1745202643199,-151.0,0.00063014,120]
[358483130,1745202643208,-160.493781,0.00063014,120]
[358483131,1745202643218,-160.493781,0.00063014,120]
[358483132,1745202643226,-151.0,0.00063014,120]
[358483133,1745202643235,-748.9916381,0.00063014,120]